bitfinex/quotes_SOLUSD_20250714
["timestamp","ask_amount","ask_price","bid_price","bid_amount"]
[1752501310614,5.94035879,168.34,168.24,112.23306037]
[1752501310937,5.9483764,168.3,168.25,37.4283764]
[1752501311128,5.9483764,168.3,168.25,126.9283764]
[1752501311347,5.94000594,168.35,168.26,5.9483764]
[1752501311626,5.9483764,168.32,168.27,16.78468397]
[1752501312037,5.9483764,168.33,168.28,5.9483764]
[1752501312341,5.9483764,168.32,168.28,89.5]
[1752501312510,5.93934165,168.37,168.28,89.5]
[1752501312712,5.9483764,168.33,168.28,89.5]
[1752501313333,2.19675871,168.39,168.29,16.78468397]
[1752501313334,5.9483764,168.32,168.29,16.78468397]
[1752501313728,5.9483764,168.34,168.29,22.73306037]
[1752501313943,8.09954329,168.43,168.34,16.78468397]
[1752501314146,5.9483764,168.36,168.34,16.78468397]
[1752501314502,5.9483764,168.35,168.34,16.78468397]
[1752501314702,11.88870614,168.35,168.31,89.5]
[1752501315003,5.9483764,168.32,168.29,16.78468397]
[1752501315217,5.9483764,168.31,168.29,16.78468397]
[1752501315434,5.9483764,168.3,168.29,16.78468397]
[1752501315729,5.9483764,168.32,168.29,16.78468397]
[1752501315940,5.9483764,168.31,168.29,16.78468397]
[1752501316234,5.9483764,168.33,168.29,16.78468397]
[1752501316826,5.9483764,168.32,168.29,16.78468397]
[1752501317512,5.94009937,168.35,168.29,16.78468397]
[1752501317718,5.9483764,168.32,168.29,16.78468397]
[1752501318113,5.94009937,168.35,168.29,16.78468397]
[1752501318318,5.939757,168.36,168.29,106.28468397]
[1752501318529,5.9483764,168.33,168.29,106.28468397]
[1752501319726,5.9483764,168.32,168.29,106.28468397]
[1752501319929,5.94013147,168.35,168.29,106.28468397]
[1752501320224,5.9483764,168.3,168.29,106.28468397]
[1752501320424,5.9483764,168.3,168.29,4.33952933]
[1752501321219,5.9483764,168.32,168.29,4.33952933]
[1752501321438,5.9483764,168.32,168.3,4.33952933]
[1752501321636,5.9483764,168.32,168.31,4.33952933]
[1752501322629,11.8967528,168.32,168.31,4.33952933]
[1752501324021,11.8967528,168.32,168.28,106.28468397]
[1752501324220,5.94077522,168.33,168.29,4.35280135]
[1752501324535,5.9483764,168.32,168.3,4.35280135]
[1752501324721,5.94077522,168.33,168.31,4.35762548]
[1752501324919,5.94077522,168.33,168.32,4.35762548]
[1752501325137,5.94077522,168.33,168.28,89.5]
[1752501325546,5.94000594,168.35,168.29,16.78468397]
[1752501325731,5.9483764,168.3,168.29,16.78468397]
[1752501325934,5.94000594,168.35,168.26,16.78468397]
[1752501325935,5.9483764,168.31,168.26,16.78468397]
[1752501326535,5.9483764,168.3,168.26,16.78468397]
[1752501326734,5.94000594,168.35,168.26,16.78468397]
[1752501326933,5.9483764,168.31,168.26,16.78468397]
[1752501327148,7.51059628,168.36,168.27,5.9483764]
[1752501327351,5.9483764,168.32,168.27,5.9483764]
[1752501327657,5.9483764,168.32,168.29,16.78468397]
[1752501328029,5.93859492,168.39,168.32,16.78468397]
[1752501328345,5.9483764,168.36,168.32,16.78468397]
[1752501328533,5.9483764,168.35,168.31,48.22468397]
[1752501328882,5.9483764,168.33,168.31,48.22468397]
[1752501329053,5.9483764,168.34,168.31,48.22468397]
[1752501329224,5.9483764,168.34,168.3,16.78468397]
[1752501329427,5.9483764,168.33,168.3,16.78468397]
[1752501329627,5.9483764,168.34,168.3,16.78468397]
[1752501330150,5.9483764,168.33,168.3,16.78468397]
[1752501330351,6.53525363,168.39,168.3,16.78468397]
[1752501330577,5.9483764,168.34,168.3,16.78468397]
[1752501330739,6.53525363,168.39,168.3,16.78468397]
[1752501330934,5.9483764,168.35,168.3,22.73306037]
[1752501331261,0.59665871,168.42,168.32,5.9483764]
[1752501331465,5.9483764,168.38,168.34,16.78468397]
[1752501331628,6.53384329,168.43,168.34,16.78468397]
[1752501331829,5.9483764,168.36,168.34,16.78468397]
[1752501332540,5.9483764,168.35,168.32,16.78468397]
[1752501332742,0.59665871,168.39,168.32,16.78468397]
[1752501332932,0.59665871,168.39,168.31,16.78468397]
[1752501332933,5.9483764,168.34,168.31,16.78468397]
[1752501333263,5.9483764,168.35,168.31,16.78468397]
[1752501333632,5.9483764,168.38,168.34,16.78468397]
[1752501334245,5.9483764,168.38,168.3,57.44]
[1752501334246,5.9483764,168.37,168.31,16.78468397]
[1752501334463,5.9483764,168.37,168.32,5.9483764]
[1752501334763,5.9483764,168.38,168.33,5.9483764]
[1752501334943,5.9483764,168.37,168.32,37.3683764]
[1752501335267,6.53395665,168.43,168.36,16.78468397]
[1752501335436,5.9483764,168.39,168.36,16.78468397]
[1752501335767,5.93772772,168.42,168.36,16.78468397]
[1752501335969,5.9483764,168.39,168.36,16.78468397]
[1752501336145,6.2185,168.44,168.36,16.78468397]
[1752501336146,5.9483764,168.4,168.36,16.78468397]
[1752501336763,5.9483764,168.37,168.33,31.42]
[1752501336960,5.9483764,168.38,168.34,16.78468397]
[1752501337154,5.9483764,168.39,168.36,16.78468397]
[1752501337341,5.9483764,168.39,168.37,4.35030946]
[1752501337548,5.9483764,168.39,168.38,4.35030946]
[1752501337746,5.93819599,168.41,168.38,4.35030946]
[1752501337955,5.93819599,168.41,168.39,4.35030946]
[1752501338153,12.49341151,168.4,168.34,16.78468397]
[1752501338342,5.93819599,168.41,168.35,4.3501815]
[1752501338549,5.9483764,168.37,168.36,4.3501815]
[1752501338754,5.9483764,168.38,168.36,4.3501815]
[1752501338954,5.9483764,168.38,168.37,4.3501815]
[1752501339962,5.93831057,168.4,168.37,4.3501815]
[1752501340272,5.9483764,168.38,168.34,16.78468397]
[1752501340470,5.9483764,168.37,168.35,4.35223465]
[1752501340658,5.9483764,168.37,168.36,4.35223465]
[1752501341347,5.93831057,168.4,168.3,5.9483764]
[1752501341670,5.93969409,168.36,168.31,4.35460648]
[1752501341855,5.9483764,168.34,168.32,4.35460648]
[1752501342051,5.9483764,168.34,168.33,4.35460648]
[1752501342251,5.93969409,168.36,168.33,4.35460648]
[1752501342454,5.9483764,168.34,168.27,16.78468397]
[1752501342654,5.9483764,168.3,168.27,16.78468397]
[1752501343064,5.9483764,168.29,168.27,16.78468397]
[1752501343279,5.9483764,168.28,168.27,16.78468397]
[1752501344078,5.9483764,168.32,168.25,16.78468397]
[1752501344379,5.9483764,168.28,168.25,16.78468397]
[1752501344556,5.9483764,168.29,168.27,16.78468397]
[1752501344744,5.9483764,168.29,168.28,21.14388471]
[1752501345370,5.9483764,168.33,168.29,16.78468397]
[1752501345562,5.9483764,168.33,168.31,16.78468397]
[1752501345766,12.48340106,168.4,168.32,4.35920074]
[1752501345767,5.9483764,168.36,168.32,4.35920074]
[1752501345971,5.9483764,168.36,168.33,4.35920074]
[1752501346150,5.9483764,168.35,168.34,21.14388471]
[1752501347173,5.9483764,168.35,168.34,4.35920074]
[1752501348974,5.9483764,168.35,168.34,4.35896946]
[1752501349879,13.95016678,168.41,168.34,4.35896946]
[1752501349880,8.0122,168.41,168.34,4.35896946]
[1752501350175,5.9483764,168.39,168.35,21.14365343]
[1752501350348,5.9483764,168.38,168.36,4.35896946]
[1752501350550,0.59665871,168.44,168.33,5.9483764]
[1752501350551,5.9483764,168.37,168.33,16.78468397]
[1752501350774,5.9483764,168.35,168.34,21.14259479]
[1752501350966,5.9483764,168.35,168.34,4.35791082]
[1752501351953,5.9483764,168.35,168.34,4.35966432]
[1752501352179,17.83690816,168.35,168.29,16.78468397]
[1752501352382,5.9483764,168.3,168.29,16.78468397]
[1752501352549,5.9483764,168.31,168.26,5.9483764]
[1752501352753,0.59665871,168.34,168.25,5.9483764]
[1752501352754,5.9483764,168.3,168.25,5.9483764]
[1752501353184,5.9483764,168.29,168.24,22.73306037]
[1752501353479,5.9483764,168.28,168.24,42.78468397]
[1752501353777,0.59665871,168.34,168.24,42.78468397]
[1752501353778,5.9483764,168.29,168.24,42.78468397]
[1752501354081,5.9483764,168.3,168.26,16.78468397]
[1752501354258,0.59665871,168.37,168.25,16.78468397]
[1752501354456,5.9483764,168.32,168.28,16.78468397]
[1752501354762,5.9483764,168.34,168.3,16.78468397]
[1752501355258,5.9483764,168.35,168.29,5.9483764]
[1752501355780,8.12985671,168.39,168.32,5.9483764]
[1752501355984,5.9483764,168.38,168.32,5.9483764]
[1752501356485,7.53316372,168.39,168.3,22.73306037]
[1752501356662,5.9483764,168.34,168.28,37.6546]
[1752501356977,5.9483764,168.34,168.29,22.73306037]
[1752501357475,5.9483764,168.32,168.28,16.78468397]
[1752501357977,5.9483764,168.3,168.27,16.78468397]
[1752501358476,5.9483764,168.3,168.25,16.78468397]
[1752501358859,5.9483764,168.29,168.23,22.73306037]
[1752501359056,5.9483764,168.29,168.23,48.73306037]
[1752501359264,5.9483764,168.3,168.25,16.78468397]
[1752501359776,5.9483764,168.29,168.24,16.78468397]
[1752501359981,5.9483764,168.28,168.24,16.78468397]
[1752501360185,5.9483764,168.26,168.21,5.9783764]
[1752501360488,5.9483764,168.27,168.22,16.78468397]
[1752501360687,5.9483764,168.26,168.22,16.78468397]
[1752501360861,5.9483764,168.27,168.22,5.9483764]
[1752501361064,5.9483764,168.26,168.22,16.78468397]
[1752501361264,5.9483764,168.25,168.21,16.81468397]
[1752501361463,5.9483764,168.26,168.21,22.76306037]
[1752501361785,8.68295871,168.31,168.22,5.9483764]
[1752501361786,5.9483764,168.27,168.22,5.9483764]
[1752501361959,5.9483764,168.31,168.26,5.9483764]
[1752501362372,5.9483764,168.32,168.27,5.9483764]
[1752501362589,5.9483764,168.33,168.28,5.9483764]
[1752501362792,8.1924,168.35,168.25,16.78468397]
[1752501362793,8.19689301,168.35,168.25,16.78468397]
[1752501363003,5.9483764,168.33,168.28,5.9483764]
[1752501363294,5.9483764,168.34,168.29,5.9483764]
[1752501363465,5.9483764,168.3,168.25,151.71446037]
[1752501363667,5.9483764,168.3,168.25,54.13306037]
[1752501363862,5.94071169,168.33,168.25,16.78468397]
[1752501364069,5.9483764,168.29,168.25,16.78468397]
[1752501364268,5.9483764,168.29,168.26,4.36448758]
[1752501364486,1.5965,168.31,168.27,4.36448758]
[1752501364673,5.9483764,168.28,168.21,6.4437]
[1752501364882,5.9483764,168.25,168.22,4.3647759]
[1752501365165,9.8846804,168.25,168.23,4.3647759]
[1752501365370,9.8846804,168.25,168.21,0.03]
[1752501365371,9.8846804,168.25,168.24,4.3647759]
[1752501365598,9.8846804,168.25,168.24,4.36490662]
[1752501366093,9.8846804,168.25,168.24,4.3657431]
[1752501366668,5.94274582,168.28,168.24,4.3657431]
[1752501366880,9.8846804,168.28,168.25,4.3657431]
[1752501367095,6.53852908,168.3,168.26,4.3657431]
[1752501367301,6.53852908,168.3,168.27,4.3657431]
[1752501367612,6.53852908,168.3,168.21,0.03]
[1752501367774,6.53852908,168.3,168.22,4.36214135]
[1752501367967,6.53852908,168.3,168.23,4.36214135]
[1752501368170,6.53852908,168.3,168.24,4.36214135]
[1752501368394,9.8846804,168.25,168.21,0.03]
[1752501368597,9.8846804,168.24,168.22,4.36165198]
[1752501368776,9.8846804,168.24,168.23,4.36165198]
[1752501368979,21.39295569,168.3,168.23,4.36165198]
[1752501369196,9.8846804,168.25,168.24,4.36165198]
[1752501369705,9.8846804,168.26,168.24,4.36165198]
[1752501369991,9.8846804,168.26,168.25,4.36165198]
[1752501370598,6.53844168,168.3,168.25,4.36165198]
[1752501370799,6.53844168,168.3,168.26,4.36165198]
[1752501370800,9.8846804,168.27,168.26,4.36165198]
[1752501372800,49.3431804,168.27,168.21,0.03]
[1752501372990,0.59665871,168.26,168.22,4.36012868]
[1752501373179,9.8846804,168.23,168.21,0.03]
[1752501373377,9.8846804,168.22,168.21,0.03]
[1752501373574,19.7693608,168.22,168.15,0.2]
[1752501373794,9.8846804,168.16,168.15,0.2]
[1752501374174,16.42805652,168.16,168.15,0.2]
[1752501374498,16.42805652,168.16,168.08,7.6624]
[1752501374499,47.82805652,168.16,168.05,31.4]
[1752501374682,9.8846804,168.11,168.06,9.8846804]
[1752501374882,9.8846804,168.1,168.05,41.2846804]
[1752501375083,9.8846804,168.09,168.05,31.4]
[1752501375283,9.8846804,168.1,168.06,16.78468397]
[1752501375803,9.8846804,168.1,168.06,26.66936437]
[1752501375991,9.8846804,168.11,168.04,16.98468397]
[1752501376190,9.8846804,168.11,168.06,26.66936437]
[1752501377201,9.8846804,168.1,168.06,26.0]
[1752501377394,6.5432761,168.17,168.06,26.0]
[1752501377395,9.8846804,168.09,168.07,16.78468397]
[1752501377604,9.8846804,168.1,168.07,16.78468397]
[1752501378109,9.8846804,168.08,168.04,0.2]
[1752501378309,9.8846804,168.05,168.04,0.2]
[1752501378604,9.8846804,168.06,168.04,0.2]
[1752501378912,9.8846804,168.05,168.04,0.2]
[1752501379987,9.8846804,168.01,168.0,0.03]
[1752501380808,19.7693608,168.01,168.0,0.03]
[1752501381302,10.48133911,168.01,168.0,0.03]
[1752501381480,20.36601951,168.01,167.92,16.78468397]
[1752501381687,9.8846804,167.93,167.89,31.4]
[1752501381989,9.8846804,168.0,167.84,31.4]
[1752501381990,5.95452111,167.94,167.84,31.4]
[1752501382194,0.59665871,167.93,167.83,1.6139]
[1752501382488,0.59665871,167.95,167.86,9.8846804]
[1752501382892,0.59665871,167.97,167.83,1.6139]
[1752501383200,0.59665871,167.97,167.84,16.78468397]
[1752501383409,9.8846804,167.93,167.88,16.78468397]
[1752501383781,9.8846804,167.9,167.85,9.8846804]
[1752501383978,6.55018677,167.97,167.88,16.78468397]
[1752501384179,9.8846804,167.91,167.88,16.78468397]
[1752501384391,9.8846804,167.89,167.87,26.0]
[1752501384602,6.55018677,167.97,167.88,16.78468397]
[1752501385211,9.8846804,167.92,167.88,16.78468397]
[1752501385419,5.95214534,168.01,167.88,16.78468397]
[1752501385609,0.59665871,168.01,167.92,26.66936437]
[1752501385798,9.8846804,167.96,167.9,9.8846804]
[1752501386397,5.95242411,168.0,167.92,9.8846804]
[1752501386398,0.59665871,168.0,167.92,9.8846804]
[1752501386598,9.8846804,167.95,167.9,9.8846804]
[1752501386798,9.8846804,167.93,167.88,26.66936437]
[1752501386998,10.48133911,168.0,167.88,16.78468397]
[1752501387206,9.8846804,167.92,167.88,16.78468397]
[1752501387415,9.8846804,167.91,167.88,16.78468397]
[1752501388422,9.8846804,167.9,167.88,16.78468397]
[1752501388938,9.8846804,167.9,167.87,31.42]
[1752501388939,9.8846804,167.9,167.85,16.78468397]
[1752501389114,9.8846804,167.89,167.85,16.78468397]
[1752501389421,0.59665871,167.98,167.84,16.78468397]
[1752501389422,9.8846804,167.88,167.84,16.78468397]
[1752501389801,0.59665871,167.98,167.84,16.78468397]
[1752501390001,9.8846804,167.88,167.84,42.78468397]
[1752501390203,9.8846804,167.87,167.84,16.78468397]
[1752501390605,9.8846804,167.86,167.84,16.78468397]
[1752501390997,9.8846804,167.85,167.83,0.03]
[1752501391220,9.8846804,167.84,167.83,0.03]
[1752501391597,9.8846804,167.86,167.83,0.03]
[1752501392019,9.8846804,167.87,167.83,0.03]
[1752501392216,12.60240639,167.92,167.83,0.03]
[1752501392399,9.8846804,167.88,167.84,16.78468397]
[1752501392604,9.8846804,167.89,167.84,16.78468397]
[1752501392804,9.8846804,167.88,167.84,16.78468397]
[1752501393002,2.24205871,167.95,167.85,9.8846804]
[1752501393224,6.4544,167.96,167.83,16.81468397]
[1752501393225,9.8846804,167.92,167.83,16.81468397]
[1752501393413,6.55079213,167.96,167.83,16.81468397]
[1752501393612,9.8846804,167.88,167.83,16.81468397]
[1752501393814,9.8846804,167.88,167.83,26.69936437]
[1752501394017,9.8846804,167.89,167.84,9.8846804]
[1752501394215,9.8846804,167.88,167.83,26.69936437]
[1752501394521,9.8846804,167.89,167.85,16.78468397]
[1752501394726,9.8846804,167.91,167.85,9.8846804]
[1752501394901,5.95344406,167.97,167.83,16.81468397]
[1752501395107,9.8846804,167.9,167.83,0.03]
[1752501395407,9.8846804,167.84,167.83,0.03]
[1752501395797,0.59665871,167.89,167.83,0.03]
[1752501396001,9.8846804,167.84,167.83,0.03]
[1752501396317,0.59665871,167.89,167.83,0.03]
[1752501396525,9.8846804,167.86,167.83,0.03]
[1752501396719,0.59665871,167.94,167.83,0.03]
[1752501397019,9.8846804,167.86,167.83,0.03]
[1752501397227,9.8846804,167.87,167.84,0.03]
[1752501397425,9.8846804,167.85,167.84,0.03]
[1752501397824,9.8846804,167.86,167.84,0.03]
[1752501398030,9.8846804,167.85,167.84,0.03]
[1752501398225,9.8846804,167.9,167.84,0.03]
[1752501398617,9.8846804,167.85,167.84,0.03]
[1752501400238,9.8846804,167.86,167.84,0.03]
[1752501400443,0.59665871,167.92,167.84,0.03]
[1752501400444,9.8846804,167.85,167.84,0.03]
[1752501404112,0.59665871,167.92,167.84,0.03]
[1752501404312,9.8846804,167.86,167.84,0.03]
[1752501404731,9.8846804,167.85,167.84,0.03]
[1752501405435,9.8846804,167.87,167.84,0.03]
[1752501405627,9.8846804,167.85,167.84,0.03]
[1752501406319,9.8846804,167.86,167.84,0.03]
[1752501407025,9.8846804,167.87,167.84,0.03]
[1752501407337,54.27791364,167.95,167.84,0.03]
[1752501407338,9.8846804,167.85,167.84,0.03]
[1752501408315,9.8846804,167.9,167.84,0.03]
[1752501408512,9.8846804,167.85,167.84,0.03]
[1752501408726,5.95486214,167.93,167.84,0.03]
[1752501408924,9.8846804,167.87,167.84,0.03]
[1752501409141,9.8846804,167.86,167.84,0.03]
[1752501409339,0.59665871,167.92,167.84,0.03]
[1752501409543,9.8846804,167.87,167.84,16.81468397]
[1752501409858,9.8846804,167.86,167.84,16.81468397]
[1752501410062,9.8846804,167.85,167.84,16.81468397]
[1752501410338,9.8846804,167.86,167.84,16.81468397]
[1752501411041,9.8846804,167.85,167.84,0.03]
[1752501413027,9.8846804,167.86,167.84,0.03]
[1752501413236,0.59665871,167.89,167.84,0.03]
[1752501413440,9.8846804,167.88,167.84,0.03]
[1752501413741,9.8846804,167.87,167.84,0.03]
[1752501414236,21.43743517,167.94,167.84,0.03]
[1752501414548,9.8846804,167.87,167.84,0.03]
[1752501415130,5.95525783,167.92,167.84,0.03]
[1752501415342,9.8846804,167.87,167.84,0.03]
[1752501415539,9.8846804,167.89,167.84,26.69936437]
[1752501415735,0.59665871,167.93,167.86,16.78468397]
[1752501415936,9.9446804,168.0,167.84,26.03]
[1752501415937,9.8846804,167.96,167.91,16.78468397]
[1752501416149,0.06,168.0,167.94,16.78468397]
[1752501416329,9.8846804,167.97,167.94,16.78468397]
[1752501416663,9.8846804,167.96,167.92,16.78468397]
[1752501416829,9.8846804,167.97,167.94,16.78468397]
[1752501417027,9.8846804,167.98,167.94,16.78468397]
[1752501417234,9.8846804,167.98,167.95,4.32665705]
[1752501417449,0.06,168.0,167.96,4.32665705]
[1752501417656,0.06,168.0,167.97,9.8846804]
[1752501417945,0.06,168.0,167.99,9.8846804]
[1752501418254,0.06,168.0,167.99,21.11870959]
[1752501418623,0.06,168.0,167.99,52.57870959]
[1752501418821,0.06,168.0,167.99,62.46338999]
[1752501419121,0.06,168.0,167.99,52.57870959]
[1752501419524,0.06,168.0,167.99,21.11870959]
[1752501420328,0.06,168.0,167.99,31.00338999]
[1752501420633,9.9446804,168.0,167.99,4.33402562]
[1752501420837,19.8293608,168.0,167.99,4.33402562]
[1752501421022,9.8846804,167.94,167.86,9.8846804]
[1752501421221,9.9446804,168.0,167.85,6.043]
[1752501421222,9.8846804,167.9,167.85,47.4476804]
[1752501421427,9.8846804,167.91,167.86,26.66936437]
[1752501421648,9.8846804,167.91,167.9,16.78468397]
[1752501421969,9.8846804,167.91,167.86,16.78468397]
[1752501422121,0.59665871,167.97,167.86,26.66936437]
[1752501422327,9.8846804,167.91,167.9,16.78468397]
[1752501422530,9.8846804,167.91,167.86,16.78468397]
[1752501422825,9.8846804,167.9,167.86,42.78468397]
[1752501423026,0.59665871,167.97,167.86,16.78468397]
[1752501423341,9.8846804,167.92,167.88,16.78468397]
[1752501423530,9.8846804,167.91,167.88,16.78468397]
[1752501423724,9.8846804,167.93,167.87,16.78468397]
[1752501423978,9.8846804,167.91,167.89,16.78468397]
[1752501424253,9.8846804,167.9,167.85,37.563]
[1752501424437,9.8846804,167.9,167.87,16.78468397]
[1752501424637,9.8846804,167.9,167.85,16.78468397]
[1752501424638,9.8846804,167.88,167.85,16.78468397]
[1752501424851,9.8846804,167.86,167.85,16.78468397]
[1752501425237,9.8846804,167.87,167.85,16.78468397]
[1752501425550,9.8846804,167.86,167.85,16.78468397]
[1752501426063,9.8846804,167.87,167.85,16.78468397]
[1752501426230,8.18590771,167.94,167.85,16.78468397]
[1752501426560,9.8846804,167.86,167.85,16.78468397]
[1752501427054,8.18590771,167.94,167.85,16.78468397]
[1752501427353,9.8846804,167.86,167.85,16.78468397]
[1752501427937,1.6346,167.94,167.85,26.66936437]
[1752501428138,5.95349041,167.97,167.89,16.78468397]
[1752501428338,4.43243303,167.96,167.89,26.66936437]
[1752501428545,9.8846804,167.94,167.89,26.66936437]
[1752501428747,9.8846804,167.93,167.89,16.78468397]
[1752501429348,2.16595871,167.98,167.89,16.78468397]
[1752501429349,9.8846804,167.92,167.89,16.78468397]
[1752501429553,9.8846804,167.93,167.89,16.78468397]
[1752501429745,9.8846804,167.92,167.89,16.78468397]
[1752501429948,9.8846804,167.93,167.89,16.78468397]
[1752501430565,8.11912117,167.98,167.89,16.78468397]
[1752501430764,9.8846804,167.93,167.89,16.78468397]
[1752501430959,9.8846804,167.96,167.91,26.66936437]
[1752501431167,9.8846804,167.95,167.91,16.78468397]
[1752501431381,9.8846804,167.92,167.91,16.78468397]
[1752501432468,21.43146938,167.99,167.91,16.78468397]
[1752501432668,9.8846804,167.92,167.91,16.78468397]
[1752501432888,9.8846804,167.92,167.9,26.0]
[1752501433191,9.8846804,167.91,167.9,42.78468397]
[1752501433580,0.06,168.0,167.9,52.66936437]
[1752501433892,9.8846804,167.97,167.93,16.78468397]
[1752501434067,9.8846804,167.96,167.93,16.78468397]
[1752501434263,9.8846804,167.95,167.94,21.16972914]
[1752501435175,9.8846804,167.95,167.94,4.38504517]
[1752501439565,0.59665871,167.99,167.94,4.38504517]
[1752501439762,0.59665871,167.99,167.95,4.38180726]
[1752501439976,9.8846804,167.99,167.96,4.38180726]
[1752501440175,0.06,168.0,167.97,4.38180726]
[1752501440378,0.06,168.0,167.98,4.37976735]
[1752501440687,16.43407439,167.99,167.91,16.78468397]
[1752501440886,9.8846804,167.94,167.92,4.38001302]
[1752501441092,9.8846804,167.94,167.93,4.38001302]
[1752501441395,9.8846804,167.97,167.93,4.38001302]
[1752501441691,9.8846804,167.96,167.94,4.38001302]
[1752501441882,9.8846804,167.97,167.95,21.16469699]
[1752501442190,9.8846804,167.96,167.92,16.78468397]
[1752501442494,16.49386773,168.0,167.93,21.16380822]
[1752501442786,9.8846804,167.96,167.95,16.78468397]
[1752501442975,9.8846804,167.97,167.95,110.76380822]
[1752501443281,9.8846804,167.97,167.96,4.37912425]
[1752501444593,15.83812446,167.97,167.96,4.37912425]
[1752501445124,15.83812446,167.97,167.91,16.78468397]
[1752501445407,0.59665871,167.96,167.92,4.38286203]
[1752501445700,9.8846804,167.93,167.86,89.6]
[1752501445889,0.59665871,167.92,167.87,21.16975986]
[1752501446070,0.59665871,167.92,167.88,4.38507589]
[1752501446273,0.59665871,167.92,167.89,4.38507589]
[1752501446584,0.59665871,167.92,167.9,4.38507589]
[1752501446779,0.59665871,167.92,167.91,4.38507589]
[1752501446974,10.48133911,167.92,167.91,4.38507589]
[1752501447501,9.8846804,167.92,167.91,4.38507589]
[1752501447869,0.59665871,167.94,167.91,4.38507589]
[1752501448112,9.8846804,167.96,167.93,16.78468397]
[1752501448403,9.8846804,167.96,167.94,4.38507589]
[1752501448700,8.2030986,167.99,167.95,4.38507589]
[1752501448872,2.25035871,167.99,167.96,4.38507589]
[1752501449067,8.20312885,167.99,167.93,16.78468397]
[1752501449270,8.20312885,167.99,167.94,4.38272159]
[1752501449465,8.20312885,167.99,167.95,4.38272159]
[1752501449689,8.20312885,167.99,167.96,4.38272159]
[1752501449894,8.20312885,167.99,167.97,4.38272159]
[1752501450102,9.8846804,167.98,167.9,26.66936437]
[1752501450294,0.59665871,167.97,167.92,16.78468397]
[1752501450470,6.5494156,167.99,167.93,4.3821419]
[1752501450675,6.5494156,167.99,167.94,4.3821419]
[1752501450979,6.5494156,167.99,167.95,4.3821419]
[1752501451178,6.5494156,167.99,167.96,4.3821419]
[1752501451377,9.8846804,167.97,167.91,16.78468397]
[1752501451579,9.8846804,167.95,167.92,4.38208668]
[1752501451786,9.8846804,167.95,167.93,4.38208668]
[1752501451989,9.8846804,167.95,167.94,4.38208668]
[1752501452774,9.8846804,167.96,167.94,4.38208668]
[1752501452973,9.8846804,167.96,167.95,4.38208668]
[1752501454292,9.8846804,167.96,167.95,4.38183326]
[1752501458093,9.8846804,167.96,167.95,4.38619845]
[1752501458476,9.8846804,167.96,167.95,4.38735201]
[1752501465708,0.06,167.99,167.96,42.78468397]
[1752501465909,0.06,167.99,167.98,26.66936437]
[1752501466208,9.9446804,167.99,167.98,4.38735201]
[1752501466711,16.49407439,167.99,167.98,4.39080592]
[1752501467085,16.49407439,167.99,167.98,4.39265203]
[1752501467892,18.07347439,167.99,167.98,4.39265203]
[1752501468098,18.07347439,167.99,167.88,1.5977]
[1752501468297,9.8846804,167.9,167.88,1.5977]
[1752501469104,9.8846804,167.89,167.88,16.78468397]
[1752501469291,9.8846804,167.89,167.86,26.0]
[1752501469492,0.59665871,167.94,167.86,16.78468397]
[1752501469493,9.8846804,167.88,167.86,16.78468397]
[1752501471028,0.59665871,167.96,167.86,16.78468397]
[1752501471193,9.8846804,167.91,167.86,16.78468397]
[1752501471396,9.8846804,167.9,167.86,16.78468397]
[1752501471994,9.8846804,167.91,167.86,26.66936437]
[1752501473011,9.8846804,167.9,167.86,16.78468397]
[1752501473224,9.8846804,167.89,167.86,16.78468397]
[1752501473526,9.8846804,167.92,167.88,16.78468397]
[1752501473826,0.59665871,167.94,167.9,16.78468397]
[1752501473827,9.8846804,167.94,167.9,16.78468397]
[1752501474019,9.8846804,167.93,167.88,9.8846804]
[1752501474322,9.8846804,167.9,167.87,16.81468397]
[1752501474502,9.8846804,167.89,167.87,16.81468397]
[1752501474706,9.8846804,167.9,167.87,16.81468397]
[1752501474904,9.8846804,167.89,167.87,16.81468397]
[1752501475221,0.59665871,167.94,167.87,16.81468397]
[1752501475403,9.8846804,167.88,167.87,16.81468397]
[1752501475816,9.8846804,167.88,167.87,0.03]
[1752501477439,9.8846804,167.88,167.84,3.03]
[1752501477440,15.84131609,167.88,167.84,3.03]
[1752501477601,9.8846804,167.85,167.84,3.03]
[1752501478097,0.59665871,167.89,167.84,3.03]
[1752501478294,9.8846804,167.86,167.84,3.03]
[1752501479325,9.8846804,167.85,167.84,3.03]
[1752501480725,0.59665871,167.86,167.84,3.03]
[1752501480928,9.8846804,167.85,167.84,3.03]
[1752501481321,10.48133911,167.85,167.84,3.03]
[1752501482217,10.48133911,167.85,167.83,0.03]
[1752501482418,9.8846804,167.84,167.83,0.03]
[1752501482927,15.84273569,167.84,167.83,0.03]
[1752501483133,19.7693608,167.8,167.79,0.03]
[1752501483632,9.8846804,167.8,167.79,0.03]
[1752501483925,2.16005871,167.83,167.79,0.03]